Cogmind - Beta 16.1 @@@ ROGUE MODE // 2026.06.17 @ 19:12:53 Player: Kanyash Result: Destroyed by G-34 Mercenary with Small Laser Performance ------------- Evolutions (0) 0 Regions Visited (2) 400 Robots Destroyed (14) 70 Value Destroyed (221) 221 Prototype IDs (0) 0 Alien Tech Used (0) 0 Bonus (0) 0 TOTAL SCORE: 691 Bonus ------- None Cogmind --------- Core Integrity 0/250 Matter 280/300 Energy 100/100 System Corruption 0% Temperature Cool (6) Movement Walking (120) Location -10/Mines Parts ------- > --- POWER (1) -------- (None) > --- PROPULSION (2) --- Aluminum Leg Aluminum Leg > --- UTILITY (2) ------ Large Storage Unit Targeting Computer > --- WEAPON (2) ------- (None) > --- INVENTORY (15) --- Light Treads Light Treads Improved Heat Sink Medium Storage Unit Medium Storage Unit Large Storage Unit Medium Laser Small Laser Light Assault Rifle Light Assault Rifle Light Assault Rifle Peak State ------------ > --- POWER ------------ Ion Engine > --- PROPULSION ------- Aluminum Leg Aluminum Leg > --- UTILITY ---------- Large Storage Unit Improved Terrain Scanner > --- WEAPON ----------- Assault Rifle Light Assault Rifle > --- INVENTORY -------- Light Treads Light Treads Aluminum Leg Improved Heat Sink Medium Storage Unit Medium Storage Unit Large Storage Unit Targeting Computer Medium Laser Small Laser Light Assault Rifle Light Assault Rifle [Rating: 10] Favorites ----------- Power Light Ion Engine Engine Light Ion Engine Propulsion Aluminum Leg Treads Light Treads Leg Aluminum Leg Utility Large Storage Unit Device Improved Terrain Scanner Storage Large Storage Unit Processor Targeting Computer Weapon Assault Rifle Energy Gun Medium Laser Ballistic Gun Assault Rifle Build | -11 -10 -10 ------- Run | Yrd Mat Min Slots Evolved . | . . . Power . | . . . Propulsion . | . . . Utility . | . . . Weapon . | . . . Parts Attached 19 | 5 10 4 Power 4 | 1 2 1 Engine 4 | 1 2 1 Core . | . . . Reactor . | . . . Propulsion 5 | 1 1 3 Treads 1 | . . 1 Leg 4 | 1 1 2 Wheel . | . . . Hover . | . . . Flight . | . . . Utility 6 | 1 5 . Device 1 | . 1 . Storage 2 | 1 1 . Processor 3 | . 3 . Hackware . | . . . Protection . | . . . Artifact . | . . . Weapon 4 | 2 2 . Energy Gun 2 | 1 1 . Energy Cannon . | . . . Ballistic Gun 2 | 1 1 . Ballistic Cannon . | . . . Launcher . | . . . Special Weapon . | . . . Impact Weapon . | . . . Slashing Weapon . | . . . Piercing Weapon . | . . . Special Melee Weapon . | . . . Unidentified Prototypes . | . . . Parts Lost 8 | . 2 6 Power 3 | . 1 2 Propulsion 2 | . . 2 Utility 1 | . 1 . Weapon 2 | . . 2 Highest Loss Streak 3 | . 1 3 To Critical Strikes . | . . . Average Backups 9 | 3 8 12 Power . | . . . Propulsion 2 | 1 2 3 Utility 3 | . 3 4 Weapon 3 | . 2 4 Tool/Special . | . . . Unused Backups 8 | . . 8 Power . | . . . Propulsion 1 | . . 1 Utility 4 | . . 4 Weapon 3 | . . 3 Tool/Special . | . . . Average Slot Usage (%) 96 | . 97 94 Engine 12 | . 13 11 Leg 27 | . 28 27 Device 1 | . 3 . Storage 14 | . 14 14 Processor 11 | . 9 14 Energy Gun 4 | . 6 . Ballistic Gun 22 | . 20 25 Peak Build Rating 10 | 4 10 8 Average Rating 7 | 3 8 7 On Entrance 4 | . 4 8 Avg Prop Armor Cover (%) . | . . . Naked Turns . | . . . Heaviest Build 29 | 10 29 26 Greatest Support 20 | 10 20 20 Greatest Overweight (x) 1 | . 1 1 Average Overweight (x) . | . . 1 Largest Inventory Capacity 15 | 8 15 15 Average Capacity 13 | 7 12 15 Most Carried 13 | 6 13 13 Average Carried 9 | 3 8 12 Final Capacity 15 | 8 15 15 Final Carried 13 | 6 13 11 Class Distribution -------------------- 100% | Mutant Dominant Class ---------------- Mutant | -10/Materials Mutant | -10/Mines Resources | -11 -10 -10 ----------- Run | Yrd Mat Min Matter Collected 516 | 224 246 46 Remotely . | . . . Salvage Created 382 | . 336 46 Parts 25 | . 21 4 Haulers Intercepted . | . . . Recyclers Shooed 3 | 1 2 . Parts Field Recycled . | . . . Retrieved Matter . | . . . Parts Self-Destructed . | . . . Prevented . | . . . Parts Restored . | . . . Kills | -11 -10 -10 ------- Run | Yrd Mat Min Combat Hostiles Destroyed 9 | . 6 3 Guns 9 | . 6 3 Classes Destroyed 6 | . 6 . Worker 1 | . 1 . Tunneler 1 | . 1 . Recycler 1 | . 1 . Watcher 2 | . 2 . Swarmer 6 | . 3 3 Grunt 3 | . 3 . Best Kill Streak 4 | . 4 3 Combat Bots Only 3 | . 2 3 Max Kills in Single Turn 2 | . 1 2 Gunslinging . | . . . Exploded . | . . . Melee . | . . . Uniques/NPCs Destroyed . | . . . Combat | -11 -10 -10 -------- Run | Yrd Mat Min Hostile Shots Fired 122 | . 69 53 Missed 32 | . 15 17 Hits 90 | . 54 36 Projectile 90 | . 54 36 Damage Taken 915 | . 534 381 Core 261 | . 151 110 Absorbed by Shields . | . . . Core Remaining (%) 100 | 100 . . Volleys Fired 55 | 5 32 18 Largest 2 | 1 2 2 Hottest 70 | 40 70 40 Shots Fired 98 | 5 64 29 Gun 98 | 5 64 29 Cannon . | . . . Launcher . | . . . Special . | . . . Kinetic 83 | 1 53 29 Thermal 15 | 4 11 . Explosive . | . . . Electromagnetic . | . . . Robot Hit Streak 10 | 2 9 10 Robot Miss Streak 4 | 2 4 4 Penetration Max . | . . . Secondary Targets 3 | . 2 1 Max Gunslinging Chain 1 | . 1 1 Shots Hit Robots 59 | 3 40 16 Core Hits 26 | 1 17 8 Critical Kills . | . . . Critical Parts Destroyed 1 | . . 1 Critical Strikes 1 | . . 1 Destroy 1 | . . 1 Melee Attacks . | . . . Impact . | . . . Slashing . | . . . Piercing . | . . . Sneak Attacks . | . . . Combat Hostiles . | . . . Follow-up Attacks . | . . . Damage Inflicted 678 | 36 475 167 Guns 678 | 36 475 167 Cannons . | . . . Explosions . | . . . Melee . | . . . Ramming . | . . . Kinetic 555 | 13 375 167 Thermal 123 | 23 100 . Explosive . | . . . Electromagnetic . | . . . Impact . | . . . Slashing . | . . . Piercing . | . . . Highest Corruption . | . . . Average Corruption . | . . . Corruption Purged . | . . . Corruption Blocked . | . . . Overload Shots . | . . . Overflow Damage . | . . . Projectiles . | . . . Explosions . | . . . Melee . | . . . Knockbacks . | . . . Impact . | . . . Kinetic . | . . . Secondary . | . . . Self-Inflicted Damage . | . . . Shots . | . . . Rammed . | . . . Targets Rammed . | . . . Kicked . | . . . Crushed . | . . . Highest Temperature 70 | . 70 4 Average Temperature 18 | . 20 2 Received Heat Transfer 333 | . 186 147 Siege Activations . | . . . Martial Activations . | . . . Shielding Activations . | . . . Robots Disrupted . | . . . Combat Hostiles . | . . . Robots Corrupted . | . . . Combat Hostiles . | . . . Parts Fried . | . . . Impact Corruptions . | . . . Robots Melted . | . . . Combat Hostiles . | . . . Parts Melted 2 | . 2 . Heat Transferred 346 | 50 296 . Parts Sabotaged . | . . . Parts Stolen . | . . . Parts Stripped . | . . . Power Chain Reactions . | . . . Alert | -11 -10 -10 ------- Run | Yrd Mat Min Maximum Alert Level . | . . . Low Security (%) 100 | 100 100 100 Level 1 . | . . . Level 2 . | . . . Level 3 . | . . . Level 4 . | . . . Level 5 . | . . . High Security . | . . . Max Security . | . . . Peak Influence 84 | . 84 60 Initial 32 | . . 32 Average 15 | . 18 14 Influence Increases 310 | . 225 85 Destroy 0b10 Robot/C 180 | . 120 60 Destroy 0b10 Robot/NC 25 | . 25 . Destroy Leader 44 | . 34 10 Destroy Structure 1 | . 1 . Lose Combat Pursuer 60 | . 45 15 Influence Decreases 310 | . 141 169 Entered New Map 52 | . . 52 Time Decay 233 | . 131 102 Lost Part 25 | . 10 15 Squads Dispatched 2 | . 2 . Investigation . | . . . Extermination . | . . . Reinforcement 2 | . 2 . Assault . | . . . Garrison . | . . . Intercept . | . . . Searches Triggered . | . . . Construction Impeded . | . . . Haulers Reinforced . | . . . Active Scanning Responses . | . . . Cargo Convoy Interrupts . | . . . Stealth | -11 -10 -10 --------- Run | Yrd Mat Min Distress Signals 2 | . 2 . Communications Jammed . | . . . Distress Signals . | . . . Times Spotted 20 | . 14 6 Peak Tracking Total 3 | . 3 3 Tactical Retreats 3 | . 2 1 Traps | -11 -10 -10 ------- Run | Yrd Mat Min Traps Triggered . | . . . Indirectly . | . . . Trap Hack Attempts . | . . . Triggered . | . . . Disarmed . | . . . Reprogrammed . | . . . Reused . | . . . Traps Extracted . | . . . Installed . | . . . Triggered . | . . . Machines | -11 -10 -10 ---------- Run | Yrd Mat Min Machines Disabled . | . . . Max in Single Turn . | . . . Machines Repaired . | . . . Machines Dismantled . | . . . Machines Sabotaged . | . . . Overloaded Fab Kills . | . . . Hacking | -11 -10 -10 --------- Run | Yrd Mat Min Machines Accessed . | . . . Terminals . | . . . Fabricators . | . . . Repair Stations . | . . . Recycling Units . | . . . Scanalyzers . | . . . Garrison Access . | . . . Total Hacks . | . . . Successful . | . . . Failed . | . . . Catastrophic . | . . . Database Lockouts . | . . . Manual . | . . . Terminals . | . . . Fabricators . | . . . Repair Stations . | . . . Recycling Units . | . . . Scanalyzers . | . . . Garrison Access . | . . . Terminal Hacks . | . . . Fabricator Hacks . | . . . Repair Station Hacks . | . . . Recycling Unit Hacks . | . . . Scanalyzer . | . . . Garrison Access Hacks . | . . . Unauthorized Hacks . | . . . Terminals . | . . . Fabricators . | . . . Repair Stations . | . . . Recycling Units . | . . . Scanalyzers . | . . . Garrison Access . | . . . Data Cores Recovered . | . . . Used . | . . . Hacking Detections . | . . . Full Trace Events . | . . . Feedback Events . | . . . Feedback Blocked . | . . . Robot Schematics Acquired . | . . . Robots Built . | . . . Authchips . | . . . Time . | . . . Total Robot Build Rating . | . . . Part Schematics Acquired . | . . . Parts Built . | . . . Authchips . | . . . Time . | . . . Total Part Build Rating . | . . . Part Studies Acquired . | . . . Parts Repaired . | . . . Time . | . . . Parts Recycled . | . . . Recycled Matter . | . . . Retrieved Matter . | . . . Retrieved Components . | . . . Parts Scanalyzed . | . . . Part Schematics Acquired . | . . . Parts Damaged . | . . . Bothacking | -11 -10 -10 ------------ Run | Yrd Mat Min Used RIF Installer . | . . . Robots Hacked . | . . . Non-combat . | . . . Combat . | . . . Robot Hacks Applied . | . . . Relay Couplers Released . | . . . Fabnet Peak Effective % . | . . . Robots Rewired . | . . . Allies Hacked . | . . . Hacks Repelled . | . . . Allies | -11 -10 -10 -------- Run | Yrd Mat Min Total Allies . | . . . Largest Group . | . . . Highest-Rated Group . | . . . Highest-Rated Ally . | . . . Total Orders . | . . . Ally Attacks . | . . . Total Damage . | . . . Kills . | . . . Allies Corrupted . | . . . Allies Melted . | . . . Intel | -11 -10 -10 ------- Run | Yrd Mat Min Active Infowar (turns) 362 | . 362 . Optics 235 | . 235 . Terrain 127 | . 127 . Robot Analysis Total . | . . . Derelict Logs Recovered . | . . . Drone Launches . | . . . Drone Recoveries . | . . . Exploration | -11 -10 -10 ------------- Run | Yrd Mat Min Turns Passed 1018 | 90 559 369 Spaces Moved 470 | 58 259 153 Core 7 | 7 . . Treads . | . . . Legs 463 | 51 259 153 Wheels . | . . . Hover . | . . . Flight . | . . . Fastest Speed 50 | 50 120 190 Average Speed 164 | 111 161 190 Slowest Speed 190 | 120 190 190 Overloaded Moves . | . . . Propulsion Burnouts . | . . . Robots Hopped . | . . . Potential Cave-ins . | . . . Cave-ins Triggered . | . . . Exploration Rate (%) 28 | 4 48 34 Regions Visited 2 Branch Regions 1 Pre-discovered Areas . | . . . Known Exits Taken . | . . . Unknown Exits Taken 2 | 1 1 . Scrap Searched . | . . . Spaces Dug . | . . . Terrain Destroyed . | . . . Melee . | . . . Projectile . | . . . AOE . | . . . Terrain Rammed . | . . . Walls Destroyed . | . . . Machines Disabled . | . . . Actions | -11 -10 -10 --------- Run | Yrd Mat Min Total 623 | 79 339 205 Wait 49 | . 20 29 Move 468 | 57 258 153 Hop . | . . . Pick Up 28 | 11 16 1 Fast Attach . | . . . Attach 13 | 5 5 3 Detach . | . . . Swap 7 | . 6 1 Drop 3 | 1 2 . Fire 55 | 5 32 18 Melee . | . . . Ram . | . . . Kick . | . . . Crush . | . . . Escape Stasis . | . . . Rewire . | . . . Trap . | . . . Miscellaneous . | . . . Route ------- -11/Scrapyard -10/Materials (discovered 4 exits: [*Mat x3] / [*Min]) -10/Mines History --------- Turn | Location | Event 4 | -11/Scrapyard | Discovered new exit (range 16) 91 | -11/Scrapyard | Entered Materials 225 | -10/Materials | Discovered new exit (range 4) 232 | -10/Materials | Discovered new exit (range 16) 316 | -10/Materials | Build established: Mutant 338 | -10/Materials | Discovered new exit (range 13) 505 | -10/Materials | Discovered new exit (range 5) 619 | -10/Materials | Core integrity fell below 50% 650 | -10/Materials | Entered Mines 953 | -10/Mines | Core integrity fell below 20% 998 | -10/Mines | Lost 3 parts (1p1n1w) 1019 | -10/Mines | Destroyed by G-34 Mercenary with Small Laser Last Messages --------------- Acquired 13 matter. K-01 Serf collects debris. Acquired Lgt. Assault Rifle. K-01 Serf collects debris. A derelict is hurriedly installing traps. ON-C2T(g): "Hehe, this'll put a wrench in their mining defense operations..." ON-C2T(g) slips into the shadows. K-01 Serf collects debris. Aluminum Leg destroyed. K-01 Serf collects debris. Lgt. Ion Engine destroyed. G-47 Trooper suffers critical hit (Destroy). Destroyed Particle Gun. Assault Rifle destroyed. Acquired 2 matter. R-06 Scavenger collects Flight Unit. Lgt. Assault Rifle destroyed. R-06 Scavenger collects Lgt. Ion Engine. R-06 Scavenger collects Flight Unit. Map ----- +----------------------------------------------------+ | | | | | ??????????????????????????????????????????????? | | ??????????????????????????????????????????????? | | ??????????????????????????????????????????????? | | ??????????????????????????????????????????????? | | ??????????????????????????????????????????????? | | ??????????????????????????????????????????????? | | ??????????????????????????????????????????????? | | ??????????????########????????????????????????? | | ??????????????# ^ #????????????????????????? | | ?????????????## # #????????????????????????? | | ????????###?## # #????????????????????????? | | ???????## ## ^# ^ #????????????????????????? | | ???????# ## #????????????????????????? | | ???????# #?????####???????????????? | | ???????# ###?????# #??????????????? | | ???????# ##???????# #?????????????? | | ???????## #### #????????# ##???????????? | | ????????# ##????# #?????????# ##??????????? | | ????????#???????# #??????????# #??????????? | | ????????????????# #??????????## #??????????? | | ????????????????# #?????####??# ##?????????? | | ????????????????# #????## ##?# #####?????? | | ????????????????# #?#### #?## ##????? | | ????????????????# #?# @ ##?## ##???? | | ????????# ####### ### g ##?## ##??? | | ???????# k r #??## ##?? | | ???????# ## ######### #???#### ##? | | ?????????????????????##### ##?????## #? | | ?????????????????????????## ######## #? | | ??????????????????????????## ## #? | | ???????????????????????????# #? | | ???????????????????????????# #? | | ???????????????????????????# ##? | | ???????????????????????????## #####?? | | ????????????????????????????## ##?????? | | ?????????????????????????????## ## ##?????? | | ??????????????????????????????# #### #?????? | | ??????????????????????????????# ##??# ##????? | | ?????????????????????????????## ##??# #????? | | ????????????????????????????## #??# ##???? | | ???????????????????????????## #??## #???? | | ???????????????????????????# #???## #??? | | ??????????????????????????## ##????## #??? | | ?????????????????????????## ##???????###??? | | ?????????????????????????# ######????????? | | ?????????????????????????# #????????? | | ?????????????????????????# #????????? | | ?????????????????????????## ##### #????????? | +----------------------------------------------------+ Best States ------------- Heat Dissipation 25 Energy Generation 10 Energy Capacity 250 Matter Stores 300 Matter Capacity 300 Sight Range 18 Terrain Scan Range 16 Terrain Scan Density 10 Evasion (%) 55 Targeting Accuracy 5 Recoil Reduction 1 Item Schematics ----------------- None Robot Schematics ------------------ None Fabricated ------------ Nothing Repaired ---------- Nothing Studied --------- None Alien Tech Used ----------------- None Achievements -------------- None Challenges ------------ None Game ------ Seed WeaponBiocellExtractor Manual? 0 Play Time 00:09:01 Cumulative 3.2 hours Start 2026.06.17 @ 19:02:45 End 2026.06.17 @ 19:12:53 Sessions 2 Manual Loads 0 Difficulty Rogue Special Mode None Game No. 7 Rogue 7 Adventurer 0 Explorer 0 Win Type - Total 0 Types 0/0/0/0/0/0/0/0/0/0 Lore% 1 Gallery% 7 Achievement% 6 Wizard Run 0 Options --------- Layout 1 ASCII 0 Keyboard 0 Movement Mouse Keybinds 0 Fullscreen 1 Font 32/Terminus Map View 50x35 Zoom Use 11% Tactical HUD 0 Map Filters NONE Filters NONE Steam 1 RUN: f9ff5d9e-945d-45db-a5f0-00953c984a35